Workbook

Sheet MSU
B1: Kari Korhonen | E1: 10.3.1969
B2: SUPERPESIS | E2: Runkosarja | I2: Kärkilyönnit (KL), pesänvälit | P2: Ylempi loppusarja | W2: Ylempi loppusarja | AD2: Arvo-ottelut | AH2: Mitalit
B3: Vuosi | C3: Sija | D3: Seura | E3: OTT | F3: KUN | G3: LÖI | H3: TOI | I3: KL | J3: 0 > 1 | K3: 1 > 2 | L3: 2 > 3 | M3: 3 > k | N3: KL-% | P3: OTT | Q3: KUN | R3: LÖI | S3: TOI | T3: KL | U3: KL-% | W3: OTT | X3: KUN | Y3: LÖI | Z3: TOI | AA3: KL | AB3: KL-% | AD3: IL | AE3: LL | AF3: hSM | AG3: K | AH3: H | AI3: P
B4: 1986 | C4: 5. | D4: KPK | F4: suomensarja
B5: 1987 | C5: 10. | D5: KPK | F5: suomensarja
B6: 1988
B7: 1989
B8: 1990 | C8: 12. | D8: KPK | F8: suomensarja
B9: 1991
B10: 1992 | C10: 14. | D10: VM | E10: 13 | F10: 0 | G10: 5 | H10: 6 | I10: 36 | J10: 14 | K10: 11 | L10: 6 | M10: =PRODUCT(F10+G10) -> 5 | N10: 42.4 %
B11: 1993
B12: 1994
B13: 1995 | C13: 1. | D13: HPH | F13: suomensarja
B14: 1996
B15: 1997
B16: 1998
B17: 1999
B18: 2000
B19: 2001 | C19: 6. | D19: KPK | F19: ykköspesis | O19: 0 | V19: 0 | AC19: 0
B20: Yhteensä | E20: =SUM(E4:E13) -> 13 | F20: 0 | G20: 5 | H20: 6 | I20: 36 | J20: 14 | K20: 11 | L20: 6 | M20: 5 | N20: 42.4 % | P20: =SUM(P4:P13) -> 0 | Q20: =SUM(Q4:Q13) -> 0 | R20: =SUM(R4:R13) -> 0 | S20: =SUM(S4:S13) -> 0 | T20: =SUM(T4:T13) -> 0 | U20: 0.0 % | W20: =SUM(W4:W13) -> 0 | X20: 0 | Y20: 0 | Z20: 0 | AA20: 0 | AB20: 0.0 % | AD20: =SUM(AD4:AD13) -> 0 | AE20: 0 | AF20: 0 | AG20: 0 | AH20: 0 | AI20: 0
B21: Pesispörssi | D21: =SUM(F20:H20)+((I20-F20-G20)/3)+(E20/3)+(AD20*25)+(AE20*25)+(AF20*10)+(AG20*25)+(AH20*20)+(AI20*15) -> 25.7
B23: URA SUPERISSA | E23: OTT | F23: KUN | G23: LÖI | H23: TOI | I23: KL | K23: ka/L | L23: ka/T | M23: ka/KL | N23: KL-% | P23: ENSIMMÄISET RUNKOSARJASSA
B24: Runkosarja | E24: =PRODUCT(E20) -> 13 | F24: =PRODUCT(F20) -> 0 | G24: =PRODUCT(G20) -> 5 | H24: =PRODUCT(H20) -> 6 | I24: =PRODUCT(I20) -> 36 | K24: =PRODUCT((F24+G24)/E24) -> 0.38 | L24: =PRODUCT(H24/E24) -> 0.46 | M24: =PRODUCT(I24/E24) -> 2.77 | N24: =PRODUCT(N20) -> 42.4 % | P24: Ottelu | R24: 02.07. 1992 AA - VM 8-3 | X24: 1. ottelu | Z24: 23 v 3 kk 22 pv
B25: Ylempi loppusarja | P25: Lyöty | R25: 02.07. 1992 AA - VM 8-3 | X25: 1. ottelu | Z25: 23 v 3 kk 22 pv
B26: Alempi loppusarja | P26: Tuotu | R26: 09.07. 1992 SMJ - VM 11-1 | X26: 3. ottelu | Z26: 23 v 3 kk 29 pv
B27: KAIKKI | E27: =SUM(E24:E26) -> 13 | F27: =SUM(F24:F26) -> 0 | G27: =SUM(G24:G26) -> 5 | H27: =SUM(H24:H26) -> 6 | I27: =SUM(I24:I26) -> 36 | K27: =PRODUCT((F27+G27)/E27) -> 0.38 | L27: =PRODUCT(H27/E27) -> 0.46 | M27: =PRODUCT(I27/E27) -> 2.77 | N27: 42.4 % | P27: Kunnari
B29: Seurat | D29: VM = Vaasan Maila (1933)
D30: KPK = Kajaanin Pallokerho (1933)
D31: YPa = Ylöjärven Pallo (1960)
D32: HPH = Hämeen Pesä-Haukat (1995)

Sheet MYP, MSS
B1: Kari Korhonen | E1: 10.3.1969
B2: YKKÖSPESIS | E2: Runkosarja | L2: Runkosarja TOP-10 | Q2: Jatkosarjat | X2: SUOMENSARJA | AA2: Runkosarja | AH2: Runkosarja TOP-10 | AM2: Jatkosarjat
B3: Vuosi | C3: Sija | D3: Seura | E3: OTT | F3: KUN | G3: LÖI | H3: TOI | I3: KL | J3: KL-% | L3: LÖI | M3: TOI | N3: L+T | O3: KL | Q3: OTT | R3: KUN | S3: LÖI | T3: TOI | U3: KL | V3: KL-% | X3: Vuosi | Y3: Sija | Z3: Seura | AA3: OTT | AB3: KUN | AC3: LÖI | AD3: TOI | AE3: KL | AF3: KL-% | AH3: LÖI | AI3: TOI | AJ3: L+T | AK3: KL | AM3: OTT | AN3: KUN | AO3: LÖI | AP3: TOI | AQ3: KL | AR3: KL-%
X4: 1986 | Y4: 5. | Z4: KPK | AA4: 20 | AB4: 0 | AC4: 11 | AD4: 14
X5: 1987 | Y5: 10. | Z5: KPK | AA5: 22 | AB5: 1 | AC5: 13 | AD5: 28
X7: 1990 | Y7: 12. | Z7: KPK | AA7: 11 | AB7: 1 | AC7: 2 | AD7: 8
X9: 1992 | Y9: 9. | Z9: YPa | AA9: 9 | AB9: 1 | AC9: 6 | AD9: 12
X11: 1995 | Y11: 1. | Z11: HPH
B13: 2001 | C13: 6. | D13: KPK | E13: 1 | F13: 0 | G13: 0 | H13: 0 | I13: 0 | J13: -----
B14: YHTEENSÄ | E14: =SUM(E4:E13) -> 1 | F14: =SUM(F4:F13) -> 0 | G14: =SUM(G4:G13) -> 0 | H14: =SUM(H4:H13) -> 0 | I14: =SUM(I4:I13) -> 0 | J14: 0.0 % | K14: =SUM(K4:K13) -> 0 | Q14: =SUM(Q4:Q13) -> 0 | R14: =SUM(R4:R13) -> 0 | S14: =SUM(S4:S13) -> 0 | T14: =SUM(T4:T13) -> 0 | U14: =SUM(U4:U13) -> 0 | V14: 0.0 % | W14: =SUM(W4:W13) -> 0 | X14: YHTEENSÄ | AA14: =SUM(AA4:AA13) -> 62 | AB14: =SUM(AB4:AB13) -> 3 | AC14: =SUM(AC4:AC13) -> 32 | AD14: =SUM(AD4:AD13) -> 62 | AE14: =SUM(AE4:AE13) -> 0 | AF14: 0.0 % | AG14: =SUM(AG4:AG13) -> 0 | AM14: =SUM(AM4:AM13) -> 0 | AN14: =SUM(AN4:AN13) -> 0 | AO14: =SUM(AO4:AO13) -> 0 | AP14: =SUM(AP4:AP13) -> 0 | AQ14: =SUM(AQ4:AQ13) -> 0 | AR14: 0.0 % | AS14: =SUM(AS4:AS13) -> 0
B16: KAIKKI OTTELUT | E16: OTT | F16: KUN | G16: LÖI | H16: TOI | I16: KL | J16: KL-% | L16: ka/L | M16: ka/T | N16: ka/l+t | O16: ka/kl | R16: Seurat | T16: VM = Vaasan Maila (1933)
B17: SUPERPESIS | E17: 13 | F17: 0 | G17: 5 | H17: 6 | I17: 36 | J17: 42.4 % | K17: =PRODUCT(I17/J17) -> 84.90566038 | L17: =PRODUCT((F17+G17)/E17) -> 0.38 | M17: =PRODUCT(H17/E17) -> 0.46 | N17: =PRODUCT((F17+G17+H17)/E17) -> 0.85 | O17: =PRODUCT(I17/E17) -> 2.77 | T17: KPK = Kajaanin Pallokerho (1933)
B18: YKKÖSPESIS | E18: =PRODUCT(E14+Q14) -> 1 | F18: =PRODUCT(F14+R14) -> 0 | G18: =PRODUCT(G14+S14) -> 0 | H18: =PRODUCT(H14+T14) -> 0 | I18: =PRODUCT(I14+U14) -> 0 | J18: 0.0 % | K18: =PRODUCT(K14+W14) -> 0 | L18: =PRODUCT((F18+G18)/E18) -> 0.00 | M18: =PRODUCT(H18/E18) -> 0.00 | N18: =PRODUCT((F18+G18+H18)/E18) -> 0.00 | O18: =PRODUCT(I18/E18) -> 0.00 | T18: YPa = Ylöjärven Pallo (1960)
B19: SUOMENSARJA | E19: =PRODUCT(AA14+AM14) -> 62 | F19: =PRODUCT(AB14+AN14) -> 3 | G19: =PRODUCT(AC14+AO14) -> 32 | H19: =PRODUCT(AD14+AP14) -> 62 | I19: =PRODUCT(AE14+AQ14) -> 0 | J19: 0.0 % | K19: =PRODUCT(AG14+AS14) -> 0 | L19: =PRODUCT((F19+G19)/E19) -> 0.56 | M19: =PRODUCT(H19/E19) -> 1.00 | N19: =PRODUCT((F19+G19+H19)/E19) -> 1.56 | O19: =PRODUCT(I19/E19) -> 0.00 | T19: HPH = Hämeen Pesä-Haukat (1995)
B20: YHTEENSÄ | E20: =SUM(E17:E19) -> 76 | F20: =SUM(F17:F19) -> 3 | G20: 37 | H20: 68 | I20: 36 | J20: 0.0 % | K20: =SUM(K17:K19) -> 84.90566038 | L20: =PRODUCT((F20+G20)/E20) -> 0.53 | M20: =PRODUCT(H20/E20) -> 0.89 | N20: =PRODUCT((F20+G20+H20)/E20) -> 1.42 | O20: =PRODUCT(I20/E20) -> 0.47

Sheet Arvo-ottelut
B1: ITÄ - LÄNSI - KORTTI
B2: Kari Korhonen | C2: 10.3.1969
B3: B - POJAT | C3: Itä - Länsi, tulos | D3: Joukkue | E3: Seura | G3: V | H3: T | I3: H | J3: Up. | K3: Lj. | L3: Palk. | M3: O | N3: K | O3: L | P3: T | Q3: KL | R3: 1 | S3: 2 | T3: 3 | U3: k | V3: KL-% | W3: Pelinjohtaja | X3: Yleisöä
B4: 12.07. 1986 Porvoo | C4: 0-5 | D4: Itä | E4: KPK | I4: 1 | L4: II p | M4: 1 | W4: Jari Koski | X4: 100
B6: A - POJAT | C6: Itä - Länsi, tulos | D6: Joukkue | E6: Seura | G6: V | H6: T | I6: H | J6: Up. | K6: Lj. | L6: Palk. | M6: O | N6: K | O6: L | P6: T | Q6: KL | R6: 1 | S6: 2 | T6: 3 | U6: k | V6: KL-% | W6: Pelinjohtaja | X6: Yleisöä
B7: 12.06. 1987 Kajaani | C7: 1-1 | D7: Itä | E7: KPK | H7: 1 | K7: jok | M7: 1 | Q7: 0/0 | V7: ---- | W7: Juha Tanskanen | X7: 450
